[Event "*** Titled Tuesday Blitz"]
[Site "Chess.com"]
[Date "2021.02.02"]
[Round "7"]
[White "Make_it_shine060"]
[Black "PerAsperaAdAstraCB"]
[Result "0-1"]
[WhiteElo "2165"]
[BlackElo "2354"]
[TimeControl "180+1"]
[EndTime "11:20:59 PST"]
[Termination "PerAsperaAdAstraCB won by resignation"]

1. d4 {[%clk 0:03:00.9]} 1... Nf6 {[%clk 0:02:59.1]} 2. c4 {[%clk 0:03:01.1]}
2... c5 {[%clk 0:02:59.7]} 3. d5 {[%clk 0:03:00.8]} 3... b5 {[%clk 0:02:59.1]}
4. Qc2 {[%clk 0:03:00.6]} 4... bxc4 {[%clk 0:02:58]} 5. e4 {[%clk 0:03:00.3]}
5... e6 {[%clk 0:02:58.5]} 6. Bxc4 {[%clk 0:02:57.4]} 6... exd5 {[%clk
0:02:58.8]} 7. exd5 {[%clk 0:02:57.4]} 7... d6 {[%clk 0:02:59.4]} 8. Nf3 {[%clk
0:02:55.7]} 8... Be7 {[%clk 0:02:59.9]} 9. O-O {[%clk 0:02:55.4]} 9... O-O
{[%clk 0:03:00.1]} 10. Nc3 {[%clk 0:02:55.6]} 10... Nbd7 {[%clk 0:03:00.7]} 11.
Bg5 {[%clk 0:02:53.3]} 11... Nb6 {[%clk 0:03:01.1]} 12. Bd3 {[%clk 0:02:48.5]}
12... h6 {[%clk 0:02:51.1]} 13. Bd2 {[%clk 0:02:31.5]} 13... Nfxd5 {[%clk
0:02:49.5]} 14. Nxd5 {[%clk 0:02:30]} 14... Nxd5 {[%clk 0:02:49.8]} 15. Be4
{[%clk 0:02:29.9]} 15... Be6 {[%clk 0:02:50.3]} 16. Qd3 {[%clk 0:02:25]} 16...
c4 {[%clk 0:02:36.5]} 17. Qxc4 {[%clk 0:02:21.5]} 17... Ne3 {[%clk 0:02:36.3]}
18. Qd3 {[%clk 0:02:08.3]} 18... Nxf1 {[%clk 0:02:36.1]} 19. Rxf1 {[%clk
0:02:08.5]} 19... d5 {[%clk 0:02:35.5]} 20. Bh7+ {[%clk 0:02:06.6]} 20... Kh8
{[%clk 0:02:35.6]} 21. Ne5 {[%clk 0:01:58]} 21... Bf6 {[%clk 0:02:29.3]} 22. Bc3
{[%clk 0:01:52.3]} 22... Qd6 {[%clk 0:02:23.6]} 23. Nc4 {[%clk 0:01:43.5]} 23...
Qd8 {[%clk 0:02:21.2]} 24. Ne5 {[%clk 0:01:42.6]} 24... Rc8 {[%clk 0:02:17.1]}
25. Re1 {[%clk 0:01:39.1]} 25... Re8 {[%clk 0:01:56]} 26. h3 {[%clk 0:01:32.5]}
26... d4 {[%clk 0:01:52.2]} 27. Bxd4 {[%clk 0:01:27.9]} 27... Bxa2 {[%clk
0:01:50.6]} 28. f4 {[%clk 0:00:53.6]} 28... Bc4 {[%clk 0:01:46.3]} 29. Qd2
{[%clk 0:00:44.6]} 29... a6 {[%clk 0:01:42.5]} 30. Bb1 {[%clk 0:00:40.9]} 30...
Kg8 {[%clk 0:01:06.4]} 31. Kh2 {[%clk 0:00:33.2]} 31... Bxe5 {[%clk 0:00:51.1]}
32. fxe5 {[%clk 0:00:29.5]} 32... Qd5 {[%clk 0:00:43.4]} 33. Qf4 {[%clk
0:00:25.8]} 33... Rcd8 {[%clk 0:00:39.6]} 34. Bc3 {[%clk 0:00:24.2]} 34... Bd3
{[%clk 0:00:32.9]} 35. Rd1 {[%clk 0:00:20.8]} 35... Qb5 {[%clk 0:00:33.4]} 36.
Ba2 {[%clk 0:00:18.6]} 36... Bg6 {[%clk 0:00:30.8]} 37. Rf1 {[%clk 0:00:17.9]}
37... Rd5 {[%clk 0:00:25]} 38. Bxd5 {[%clk 0:00:16.7]} 38... Qxd5 {[%clk
0:00:25.9]} 39. b4 {[%clk 0:00:14.6]} 39... Re6 {[%clk 0:00:25.8]} 40. Qg4
{[%clk 0:00:12.8]} 40... Qb3 {[%clk 0:00:22.9]} 41. Bd2 {[%clk 0:00:11.9]} 41...
h5 {[%clk 0:00:22.6]} 42. Qe2 {[%clk 0:00:09.3]} 42... Qd5 {[%clk 0:00:22.2]}
43. Bf4 {[%clk 0:00:08.5]} 43... Bd3 {[%clk 0:00:22.4]} 44. Qd2 {[%clk
0:00:07.4]} 44... Qe4 {[%clk 0:00:22.6]} 45. Re1 {[%clk 0:00:06.8]} 45... Qf5
{[%clk 0:00:22.9]} 46. Bg3 {[%clk 0:00:06.7]} 46... h4 {[%clk 0:00:20.7]} 47.
Bxh4 {[%clk 0:00:06.4]} 47... Rxe5 {[%clk 0:00:21.2]} 48. Rd1 {[%clk 0:00:04.7]}
48... Bb5 {[%clk 0:00:17]} 49. Qd8+ {[%clk 0:00:04]} 49... Re8 {[%clk
0:00:15.8]} 50. Qd4 {[%clk 0:00:02.8]} 50... f6 {[%clk 0:00:09.5]} 51. Bg3
{[%clk 0:00:02.6]} 51... Qe4 {[%clk 0:00:08.6]} 52. Qd2 {[%clk 0:00:02.7]} 52...
Qc4 {[%clk 0:00:08]} 53. Re1 {[%clk 0:00:02.5]} 53... Re4 {[%clk 0:00:03]} 54.
Qd8+ {[%clk 0:00:02.1]} 54... Kh7 {[%clk 0:00:02.5]} 55. Rd1 {[%clk 0:00:02.6]}
55... Qe6 {[%clk 0:00:01.2]} 56. Rd7 {[%clk 0:00:02.4]} 56... Qe8 {[%clk
0:00:01.3]} 57. Qxe8 {[%clk 0:00:01.9]} 57... Rxe8 {[%clk 0:00:02.2]} 58. Rxg7+
{[%clk 0:00:02.1]} 58... Kxg7 {[%clk 0:00:01.8]} 59. h4 {[%clk 0:00:02.4]} 59...
Kf7 {[%clk 0:00:02.2]} 60. Kh3 {[%clk 0:00:03.3]} 60... Re4 {[%clk 0:00:02.7]}
61. h5 {[%clk 0:00:04.1]} 61... Rxb4 {[%clk 0:00:03.2]} 62. h6 {[%clk 0:00:05]}
62... Kg6 {[%clk 0:00:03.7]} 63. h7 {[%clk 0:00:05.9]} 63... Kxh7 {[%clk
0:00:04.6]} 64. Bh4 {[%clk 0:00:04.9]} 64... Kg6 {[%clk 0:00:05.2]} 65. g4
{[%clk 0:00:05.8]} 65... Rb3+ {[%clk 0:00:05.5]} 66. Bg3 {[%clk 0:00:06.7]}
66... Bc6 {[%clk 0:00:06]} 67. Kh4 {[%clk 0:00:07.3]} 67... a5 {[%clk
0:00:06.5]} 68. Bf4 {[%clk 0:00:07.5]} 68... Rb1 {[%clk 0:00:06.7]} 69. g5
{[%clk 0:00:07]} 69... fxg5+ {[%clk 0:00:06.4]} 70. Bxg5 {[%clk 0:00:06.9]}
70... Rb4+ {[%clk 0:00:07.1]} 71. Kg3 {[%clk 0:00:06.1]} 71... Kxg5 {[%clk
0:00:06.8]} 0-1

[Event "*** Titled Tuesday Blitz"]
[Site "Chess.com"]
[Date "2021.02.02"]
[Round "7"]
[White "eCztery"]
[Black "PopMilan95"]
[Result "0-1"]
[WhiteElo "2438"]
[BlackElo "2612"]
[TimeControl "180+1"]
[EndTime "11:21:02 PST"]
[Termination "PopMilan95 won by resignation"]

1. e4 {[%clk 0:03:00.9]} 1... d6 {[%clk 0:02:54.9]} 2. d4 {[%clk 0:02:59.5]}
2... Nf6 {[%clk 0:02:54.6]} 3. Nc3 {[%clk 0:02:58]} 3... e5 {[%clk 0:02:55]} 4.
Nf3 {[%clk 0:02:49.2]} 4... exd4 {[%clk 0:02:50.3]} 5. Nxd4 {[%clk 0:02:47.9]}
5... Be7 {[%clk 0:02:49.1]} 6. Be2 {[%clk 0:02:41.6]} 6... O-O {[%clk
0:02:48.2]} 7. Bf4 {[%clk 0:02:39.7]} 7... Nc6 {[%clk 0:02:44.4]} 8. Qd2 {[%clk
0:02:35.6]} 8... Nxd4 {[%clk 0:02:41.2]} 9. Qxd4 {[%clk 0:02:36.5]} 9... Be6
{[%clk 0:02:41.5]} 10. O-O-O {[%clk 0:02:32.7]} 10... a6 {[%clk 0:02:36.1]} 11.
Kb1 {[%clk 0:02:26.7]} 11... Nd7 {[%clk 0:02:34.8]} 12. g4 {[%clk 0:02:21.5]}
12... b5 {[%clk 0:02:24.5]} 13. h4 {[%clk 0:02:10.1]} 13... b4 {[%clk
0:01:42.8]} 14. Nd5 {[%clk 0:02:04.6]} 14... Bxd5 {[%clk 0:01:41.6]} 15. Qxd5
{[%clk 0:01:52.3]} 15... Nc5 {[%clk 0:01:02.5]} 16. h5 {[%clk 0:01:40.1]} 16...
Ne6 {[%clk 0:00:43.6]} 17. Be3 {[%clk 0:01:19.5]} 17... Bg5 {[%clk 0:00:42.7]}
18. e5 {[%clk 0:01:08.5]} 18... Bxe3 {[%clk 0:00:37.6]} 19. fxe3 {[%clk
0:01:09.4]} 19... dxe5 {[%clk 0:00:30.1]} 20. Qxe5 {[%clk 0:01:10.3]} 20... Qg5
{[%clk 0:00:21.5]} 21. Qe4 {[%clk 0:01:04.8]} 21... Rad8 {[%clk 0:00:15.9]} 22.
Bd3 {[%clk 0:01:00.5]} 22... g6 {[%clk 0:00:14.6]} 23. hxg6 {[%clk 0:01:01.4]}
23... hxg6 {[%clk 0:00:15.5]} 24. Rh5 {[%clk 0:00:53.6]} 24... Qf6 {[%clk
0:00:11.2]} 25. Rdh1 {[%clk 0:00:52]} 25... Rfe8 {[%clk 0:00:09.9]} 26. Rh6
{[%clk 0:00:17.8]} 26... Ng5 {[%clk 0:00:08.8]} 27. Qg2 {[%clk 0:00:15.9]} 27...
Rd6 {[%clk 0:00:05.2]} 28. Qh2 {[%clk 0:00:13.9]} 28... Kf8 {[%clk 0:00:04.3]}
29. b3 {[%clk 0:00:11.8]} 29... a5 {[%clk 0:00:04]} 30. Rh8+ {[%clk 0:00:11.1]}
30... Ke7 {[%clk 0:00:04.3]} 31. Rxe8+ {[%clk 0:00:11]} 31... Kxe8 {[%clk
0:00:05.2]} 32. Qf4 {[%clk 0:00:09.8]} 32... Ke7 {[%clk 0:00:04.6]} 33. Qc4
{[%clk 0:00:08.9]} 33... c6 {[%clk 0:00:03.6]} 34. Qc5 {[%clk 0:00:08.5]} 34...
Kf8 {[%clk 0:00:03.2]} 35. Rf1 {[%clk 0:00:06.9]} 35... Qe7 {[%clk 0:00:02.7]}
36. Bc4 {[%clk 0:00:06.8]} 36... Kg7 {[%clk 0:00:02.5]} 37. Qxa5 {[%clk
0:00:05.8]} 37... Rf6 {[%clk 0:00:02.3]} 38. Rxf6 {[%clk 0:00:03.7]} 38... Kxf6
{[%clk 0:00:03.2]} 39. Qb6 {[%clk 0:00:02.9]} 39... Kg7 {[%clk 0:00:02.4]} 40.
Qd4+ {[%clk 0:00:03.3]} 40... f6 {[%clk 0:00:02.4]} 41. Qf4 {[%clk 0:00:02.9]}
41... c5 {[%clk 0:00:02.4]} 42. Qf2 {[%clk 0:00:02.7]} 42... Ne4 {[%clk
0:00:02.7]} 43. Qe1 {[%clk 0:00:03.1]} 43... Nc3+ {[%clk 0:00:03.2]} 44. Kb2
{[%clk 0:00:04]} 44... Qe5 {[%clk 0:00:03.7]} 45. Kc1 {[%clk 0:00:03.7]} 45...
Nxa2+ {[%clk 0:00:03.8]} 46. Kd1 {[%clk 0:00:04.1]} 46... Qc3 {[%clk 0:00:04.4]}
47. Qxc3 {[%clk 0:00:03.9]} 47... Nxc3+ {[%clk 0:00:05.3]} 48. Kd2 {[%clk
0:00:04.8]} 48... f5 {[%clk 0:00:06.2]} 49. gxf5 {[%clk 0:00:04.8]} 49... gxf5
{[%clk 0:00:07.1]} 50. Kd3 {[%clk 0:00:05.3]} 50... Kf6 {[%clk 0:00:07.6]} 51.
Ba6 {[%clk 0:00:05.3]} 51... Ke5 {[%clk 0:00:07.5]} 52. Kc4 {[%clk 0:00:06.2]}
52... Kd6 {[%clk 0:00:07.9]} 53. Bb7 {[%clk 0:00:06.4]} 53... Nd1 {[%clk
0:00:08]} 54. Kd3 {[%clk 0:00:05]} 54... Ke5 {[%clk 0:00:07.7]} 55. Bf3 {[%clk
0:00:05.9]} 55... Nb2+ {[%clk 0:00:07]} 56. Kd2 {[%clk 0:00:05.8]} 56... c4
{[%clk 0:00:07.5]} 57. bxc4 {[%clk 0:00:05.8]} 57... Nxc4+ {[%clk 0:00:08.4]}
58. Kd3 {[%clk 0:00:06.7]} 58... Nd6 {[%clk 0:00:08.1]} 59. c3 {[%clk 0:00:07]}
59... b3 {[%clk 0:00:05.2]} 60. Bd1 {[%clk 0:00:05.7]} 60... b2 {[%clk
0:00:04.7]} 61. Kc2 {[%clk 0:00:06.6]} 61... Nc4 {[%clk 0:00:04.6]} 62. Be2
{[%clk 0:00:06.6]} 62... Nxe3+ {[%clk 0:00:03.7]} 63. Kxb2 {[%clk 0:00:06.9]}
63... Nd5 {[%clk 0:00:03.6]} 64. c4 {[%clk 0:00:06.6]} 64... Nf4 {[%clk
0:00:03.5]} 65. Bf1 {[%clk 0:00:07]} 65... Kd4 {[%clk 0:00:03.4]} 66. Kb3 {[%clk
0:00:07.3]} 66... Ne6 {[%clk 0:00:03.1]} 67. Kb4 {[%clk 0:00:07.7]} 67... f4
{[%clk 0:00:03.2]} 68. Bh3 {[%clk 0:00:07.8]} 68... Nc5 {[%clk 0:00:03]} 69. Bf1
{[%clk 0:00:07.8]} 69... f3 {[%clk 0:00:03]} 70. Kb5 {[%clk 0:00:07.6]} 70... f2
{[%clk 0:00:03.1]} 71. Kb4 {[%clk 0:00:07.9]} 71... Ne4 {[%clk 0:00:03.2]} 72.
Kb3 {[%clk 0:00:06.9]} 72... Nd2+ {[%clk 0:00:03.4]} 73. Kc2 {[%clk 0:00:07.3]}
73... Nxf1 {[%clk 0:00:04.3]} 74. Kd1 {[%clk 0:00:07.6]} 74... Ne3+ {[%clk
0:00:04.4]} 75. Ke2 {[%clk 0:00:08.5]} 75... f1=Q+ {[%clk 0:00:05.3]} 0-1

[Event "*** Titled Tuesday Blitz"]
[Site "Chess.com"]
[Date "2021.02.02"]
[Round "7"]
[White "zimmm36"]
[Black "Homino"]
[Result "1-0"]
[WhiteElo "2106"]
[BlackElo "2293"]
[TimeControl "180+1"]
[EndTime "11:21:10 PST"]
[Termination "zimmm36 won by resignation"]

1. d4 {[%clk 0:03:00.9]} 1... Nf6 {[%clk 0:02:59.7]} 2. c4 {[%clk 0:03:00.1]}
2... c5 {[%clk 0:02:59.9]} 3. d5 {[%clk 0:02:59.9]} 3... b5 {[%clk 0:03:00.1]}
4. cxb5 {[%clk 0:03:00.8]} 4... a6 {[%clk 0:03:00.3]} 5. bxa6 {[%clk 0:03:00.6]}
5... Bxa6 {[%clk 0:03:01.2]} 6. Nc3 {[%clk 0:03:00.8]} 6... d6 {[%clk
0:03:01.8]} 7. g3 {[%clk 0:03:00.4]} 7... g6 {[%clk 0:03:01]} 8. Bg2 {[%clk
0:03:00.1]} 8... Bg7 {[%clk 0:03:01.6]} 9. Nf3 {[%clk 0:03:01]} 9... O-O {[%clk
0:03:02.1]} 10. Rb1 {[%clk 0:03:00.7]} 10... Nbd7 {[%clk 0:03:02.2]} 11. O-O
{[%clk 0:03:00.4]} 11... Ra7 {[%clk 0:03:01.3]} 12. b3 {[%clk 0:02:59.2]} 12...
Qa8 {[%clk 0:02:58.5]} 13. Bb2 {[%clk 0:02:58.3]} 13... Rb8 {[%clk 0:02:57.8]}
14. a4 {[%clk 0:02:56.9]} 14... Rab7 {[%clk 0:02:43.7]} 15. Nd2 {[%clk
0:02:55.8]} 15... c4 {[%clk 0:02:28.8]} 16. Nb5 {[%clk 0:02:23.5]} 16... Bxb5
{[%clk 0:02:24.2]} 17. axb5 {[%clk 0:02:24.4]} 17... cxb3 {[%clk 0:02:15.3]} 18.
Nxb3 {[%clk 0:02:21.7]} 18... Rxb5 {[%clk 0:02:14]} 19. Bxf6 {[%clk 0:02:14.1]}
19... Bxf6 {[%clk 0:01:34]} 20. Qd3 {[%clk 0:02:09.6]} 20... Qa2 {[%clk
0:01:10.1]} 21. Nd2 {[%clk 0:02:05.5]} 21... Rxb1 {[%clk 0:01:02.8]} 22. Rxb1
{[%clk 0:02:06.4]} 22... Rxb1+ {[%clk 0:01:01.5]} 23. Nxb1 {[%clk 0:02:05.4]}
23... Nc5 {[%clk 0:00:50.3]} 24. Qb5 {[%clk 0:02:04.1]} 24... Kg7 {[%clk
0:00:41]} 25. e3 {[%clk 0:01:55.2]} 25... Nb3 {[%clk 0:00:30.1]} 26. Be4 {[%clk
0:01:52.9]} 26... Qb2 {[%clk 0:00:19.5]} 27. Kg2 {[%clk 0:01:47.5]} 27... h5
{[%clk 0:00:18.6]} 28. h4 {[%clk 0:01:41.5]} 28... Be5 {[%clk 0:00:14.3]} 29.
Qd3 {[%clk 0:01:33.8]} 29... f5 {[%clk 0:00:12.5]} 30. Bf3 {[%clk 0:01:30.2]}
30... Nc5 {[%clk 0:00:12.4]} 31. Qd1 {[%clk 0:01:28.5]} 31... Bf6 {[%clk
0:00:11.4]} 32. Nd2 {[%clk 0:01:22.2]} 32... Nd3 {[%clk 0:00:11.5]} 33. Qe2
{[%clk 0:01:21.9]} 33... Ne5 {[%clk 0:00:10.4]} 34. Qd1 {[%clk 0:01:16.4]} 34...
Nxf3 {[%clk 0:00:09.6]} 35. Nxf3 {[%clk 0:01:17.3]} 35... Qc3 {[%clk 0:00:09.1]}
36. Qe2 {[%clk 0:01:13.9]} 36... Qb4 {[%clk 0:00:08.3]} 37. Qd3 {[%clk
0:01:13.1]} 37... Qe4 {[%clk 0:00:07.8]} 38. Qb3 {[%clk 0:01:05.5]} 38... g5
{[%clk 0:00:06.6]} 39. hxg5 {[%clk 0:01:03.2]} 39... Bxg5 {[%clk 0:00:07.3]} 40.
Qd1 {[%clk 0:01:01.3]} 40... Bf6 {[%clk 0:00:07]} 41. Kf1 {[%clk 0:00:56.1]}
41... h4 {[%clk 0:00:07.1]} 42. gxh4 {[%clk 0:00:54.5]} 42... Bxh4 {[%clk
0:00:07.1]} 43. Ke2 {[%clk 0:00:54.2]} 43... Bf6 {[%clk 0:00:06.2]} 44. Qd3
{[%clk 0:00:51.5]} 44... Qxd3+ {[%clk 0:00:05.3]} 45. Kxd3 {[%clk 0:00:51.1]}
45... Kg6 {[%clk 0:00:05.8]} 46. Nd2 {[%clk 0:00:49.4]} 46... Kg5 {[%clk
0:00:05.5]} 47. f4+ {[%clk 0:00:47.2]} 47... Kg4 {[%clk 0:00:05.7]} 48. Nc4
{[%clk 0:00:46.5]} 48... Kf3 {[%clk 0:00:05.7]} 49. Na5 {[%clk 0:00:41.5]} 49...
Bh4 {[%clk 0:00:05.5]} 50. Nc6 {[%clk 0:00:40.4]} 50... Bf6 {[%clk 0:00:05]} 51.
Nd8 {[%clk 0:00:38.9]} 51... Bh4 {[%clk 0:00:04.2]} 52. Ne6 {[%clk 0:00:38.3]}
52... Bf2 {[%clk 0:00:03.8]} 53. Nd4+ {[%clk 0:00:32.5]} 53... Kg4 {[%clk
0:00:03.2]} 54. Ke2 {[%clk 0:00:28]} 54... Bg3 {[%clk 0:00:03.2]} 55. Ne6 {[%clk
0:00:26]} 55... Bh2 {[%clk 0:00:02.6]} 56. Nd4 {[%clk 0:00:21.5]} 56... Bxf4
{[%clk 0:00:02.3]} 57. exf4 {[%clk 0:00:20.5]} 57... Kxf4 {[%clk 0:00:03.2]} 58.
Nc6 {[%clk 0:00:21.2]} 58... Ke4 {[%clk 0:00:03.5]} 59. Nxe7 {[%clk 0:00:21.1]}
59... f4 {[%clk 0:00:03.8]} 60. Kf2 {[%clk 0:00:19.9]} 60... Ke5 {[%clk
0:00:02.4]} 61. Kf3 {[%clk 0:00:19.5]} 61... Kf6 {[%clk 0:00:02.8]} 62. Nc6
{[%clk 0:00:19.4]} 62... Kf5 {[%clk 0:00:02.8]} 63. Ne7+ {[%clk 0:00:13.4]}
63... Ke5 {[%clk 0:00:03.3]} 64. Ke2 {[%clk 0:00:13.4]} 64... Ke4 {[%clk
0:00:02.7]} 65. Kf2 {[%clk 0:00:12.7]} 65... Ke5 {[%clk 0:00:02.6]} 66. Kg2
{[%clk 0:00:11.4]} 66... Kf6 {[%clk 0:00:02.4]} 67. Nc6 {[%clk 0:00:11]} 67...
Kf5 {[%clk 0:00:02.9]} 68. Kf3 {[%clk 0:00:11]} 68... Kg5 {[%clk 0:00:03.3]} 69.
Ke4 {[%clk 0:00:10.9]} 69... Kg4 {[%clk 0:00:03.5]} 70. Nd4 {[%clk 0:00:10.5]}
70... Kg3 {[%clk 0:00:03.8]} 71. Nf3 {[%clk 0:00:10.4]} 71... Kg4 {[%clk
0:00:04]} 72. Nd4 {[%clk 0:00:08.9]} 72... Kg3 {[%clk 0:00:04.2]} 73. Nf5+
{[%clk 0:00:08.9]} 73... Kg4 {[%clk 0:00:04.2]} 74. Nxd6 {[%clk 0:00:09.8]}
74... f3 {[%clk 0:00:04.2]} 75. Nc4 {[%clk 0:00:10.7]} 75... f2 {[%clk
0:00:04.2]} 76. Ne3+ {[%clk 0:00:11.6]} 76... Kg3 {[%clk 0:00:04.8]} 77. d6
{[%clk 0:00:11]} 77... Kh4 {[%clk 0:00:04.7]} 78. d7 {[%clk 0:00:10.9]} 78...
Kg5 {[%clk 0:00:05.6]} 79. d8=Q+ {[%clk 0:00:10.9]} 79... Kg6 {[%clk 0:00:06.5]}
80. Qd1 {[%clk 0:00:11.1]} 80... f1=Q {[%clk 0:00:06.7]} 81. Qxf1 {[%clk
0:00:12]} 81... Kg7 {[%clk 0:00:06.5]} 82. Qf5 {[%clk 0:00:11.7]} 82... Kg8
{[%clk 0:00:07.4]} 83. Nd5 {[%clk 0:00:11.6]} 1-0

[Event "*** Titled Tuesday Blitz"]
[Site "Chess.com"]
[Date "2021.02.02"]
[Round "7"]
[White "mishanick"]
[Black "FairChess_on_YouTube"]
[Result "1-0"]
[WhiteElo "2912"]
[BlackElo "2929"]
[TimeControl "180+1"]
[EndTime "11:21:21 PST"]
[Termination "mishanick won by checkmate"]

1. e4 {[%clk 0:03:00.6]} 1... e5 {[%clk 0:02:58.7]} 2. Nf3 {[%clk 0:03:01]} 2...
Nc6 {[%clk 0:02:59.2]} 3. Bb5 {[%clk 0:03:01.4]} 3... Nf6 {[%clk 0:02:59.1]} 4.
d3 {[%clk 0:02:58.6]} 4... Bc5 {[%clk 0:02:58.4]} 5. Nbd2 {[%clk 0:02:58.5]}
5... Nd4 {[%clk 0:02:54.4]} 6. Nxd4 {[%clk 0:02:58.2]} 6... Bxd4 {[%clk
0:02:55.3]} 7. c3 {[%clk 0:02:58.5]} 7... Bb6 {[%clk 0:02:54.9]} 8. d4 {[%clk
0:02:59]} 8... Qe7 {[%clk 0:02:40.6]} 9. O-O {[%clk 0:02:51.8]} 9... O-O {[%clk
0:02:40]} 10. Nc4 {[%clk 0:02:01.6]} 10... d6 {[%clk 0:02:22.2]} 11. Nxb6 {[%clk
0:01:58]} 11... axb6 {[%clk 0:02:23.1]} 12. f3 {[%clk 0:01:58.2]} 12... Bd7
{[%clk 0:02:15.1]} 13. Bc4 {[%clk 0:01:53.9]} 13... b5 {[%clk 0:02:08.3]} 14.
Bb3 {[%clk 0:01:52.5]} 14... c5 {[%clk 0:02:08]} 15. Be3 {[%clk 0:01:50.8]}
15... b6 {[%clk 0:02:06.1]} 16. a3 {[%clk 0:01:47]} 16... Be6 {[%clk 0:02:05.4]}
17. d5 {[%clk 0:01:45.1]} 17... Bd7 {[%clk 0:02:05.1]} 18. Qd2 {[%clk
0:01:42.1]} 18... h6 {[%clk 0:02:04.8]} 19. Rae1 {[%clk 0:01:40.7]} 19... Nh5
{[%clk 0:01:56.7]} 20. g3 {[%clk 0:01:37.5]} 20... g5 {[%clk 0:01:40.3]} 21. Bd1
{[%clk 0:01:31.8]} 21... f6 {[%clk 0:01:36.3]} 22. Qg2 {[%clk 0:01:19.9]} 22...
Qh7 {[%clk 0:01:30.9]} 23. f4 {[%clk 0:01:12]} 23... Ng7 {[%clk 0:01:30.1]} 24.
f5 {[%clk 0:01:10]} 24... h5 {[%clk 0:01:27.8]} 25. Be2 {[%clk 0:01:04.8]} 25...
Ne8 {[%clk 0:01:23]} 26. Qf3 {[%clk 0:01:02.4]} 26... Ng7 {[%clk 0:01:19.1]} 27.
Kg2 {[%clk 0:01:02.4]} 27... Ra4 {[%clk 0:01:17.4]} 28. Bd3 {[%clk 0:00:58.7]}
28... Ne8 {[%clk 0:01:14]} 29. Bc2 {[%clk 0:00:58.5]} 29... Ra7 {[%clk
0:01:10.4]} 30. Rf2 {[%clk 0:00:56.8]} 30... Nc7 {[%clk 0:01:10]} 31. Bd1 {[%clk
0:00:55.1]} 31... Be8 {[%clk 0:01:09.9]} 32. Kg1 {[%clk 0:00:54.3]} 32... Bf7
{[%clk 0:01:08.9]} 33. Qe2 {[%clk 0:00:52.4]} 33... Rfa8 {[%clk 0:01:08]} 34.
Qd3 {[%clk 0:00:52]} 34... Kf8 {[%clk 0:01:06.3]} 35. Bc2 {[%clk 0:00:52.1]}
35... Ke8 {[%clk 0:01:06.3]} 36. h3 {[%clk 0:00:52]} 36... Qg7 {[%clk
0:01:02.6]} 37. Kh2 {[%clk 0:00:51.2]} 37... Kd8 {[%clk 0:01:01.7]} 38. Ra1
{[%clk 0:00:49.4]} 38... Kc8 {[%clk 0:01:01.2]} 39. Rg1 {[%clk 0:00:46.9]} 39...
Kb7 {[%clk 0:01:01.3]} 40. h4 {[%clk 0:00:47.5]} 40... g4 {[%clk 0:01:00.9]} 41.
Rb1 {[%clk 0:00:46.7]} 41... Be8 {[%clk 0:00:58.8]} 42. Rff1 {[%clk 0:00:46.5]}
42... Qf7 {[%clk 0:00:48.8]} 43. Rfc1 {[%clk 0:00:46.4]} 43... Bd7 {[%clk
0:00:48.8]} 44. Qd2 {[%clk 0:00:45.7]} 44... Na6 {[%clk 0:00:42.5]} 45. Bd3
{[%clk 0:00:45.8]} 45... c4 {[%clk 0:00:40.4]} 46. Bc2 {[%clk 0:00:43.7]} 46...
Nc5 {[%clk 0:00:40.9]} 47. Rd1 {[%clk 0:00:41.9]} 47... Kc7 {[%clk 0:00:40.5]}
48. Ra1 {[%clk 0:00:36.7]} 48... Be8 {[%clk 0:00:32.4]} 49. Qf2 {[%clk
0:00:36.2]} 49... Bd7 {[%clk 0:00:31.7]} 50. Rdb1 {[%clk 0:00:35.2]} 50... Ra6
{[%clk 0:00:29.6]} 51. Ra2 {[%clk 0:00:32.2]} 51... Rb8 {[%clk 0:00:27.3]} 52.
Qe2 {[%clk 0:00:28.9]} 52... Qe8 {[%clk 0:00:26.5]} 53. Bf2 {[%clk 0:00:28.1]}
53... Rba8 {[%clk 0:00:25.2]} 54. Qe3 {[%clk 0:00:28.2]} 54... Qf8 {[%clk
0:00:24.7]} 55. Rba1 {[%clk 0:00:23.7]} 55... Ra5 {[%clk 0:00:23]} 56. Rd1
{[%clk 0:00:19.8]} 56... R5a6 {[%clk 0:00:22.8]} 57. Raa1 {[%clk 0:00:20.3]}
57... Be8 {[%clk 0:00:23]} 58. Rab1 {[%clk 0:00:20.5]} 58... Bd7 {[%clk
0:00:22.9]} 59. Qe2 {[%clk 0:00:20.7]} 59... Be8 {[%clk 0:00:22.8]} 60. Be3
{[%clk 0:00:21.4]} 60... Bd7 {[%clk 0:00:22.8]} 61. Rd2 {[%clk 0:00:21.1]} 61...
Qe8 {[%clk 0:00:23.1]} 62. Re1 {[%clk 0:00:21.1]} 62... Qf8 {[%clk 0:00:23]} 63.
Rdd1 {[%clk 0:00:21.6]} 63... Qe8 {[%clk 0:00:23.3]} 64. Bf2 {[%clk 0:00:22]}
64... Qf8 {[%clk 0:00:23.6]} 65. Qe3 {[%clk 0:00:22.7]} 65... R8a7 {[%clk
0:00:23.7]} 66. Rb1 {[%clk 0:00:23.2]} 66... Ra8 {[%clk 0:00:24]} 67. Rec1
{[%clk 0:00:23.8]} 67... Be8 {[%clk 0:00:24.2]} 68. Bd1 {[%clk 0:00:24.3]} 68...
Bd7 {[%clk 0:00:24.5]} 69. Be2 {[%clk 0:00:24.6]} 69... Be8 {[%clk 0:00:22.8]}
70. Kg1 {[%clk 0:00:24.4]} 70... Ra4 {[%clk 0:00:22.8]} 71. Bf1 {[%clk
0:00:23.8]} 71... R4a6 {[%clk 0:00:21.5]} 72. b4 {[%clk 0:00:22]} 72... cxb3
{[%clk 0:00:15.5]} 73. c4 {[%clk 0:00:20.5]} 73... Rxa3 {[%clk 0:00:15.6]} 74.
Qd2 {[%clk 0:00:15.5]} 74... Ra2 {[%clk 0:00:11.4]} 75. Qe1 {[%clk 0:00:14.4]}
75... b4 {[%clk 0:00:10.6]} 76. Qxb4 {[%clk 0:00:11.5]} 76... R8a4 {[%clk
0:00:10.2]} 77. Qc3 {[%clk 0:00:10.6]} 77... Qh6 {[%clk 0:00:09]} 78. Be3 {[%clk
0:00:09.6]} 78... Qg7 {[%clk 0:00:06.9]} 79. Bxc5 {[%clk 0:00:09.8]} 79... bxc5
{[%clk 0:00:06.2]} 80. Qxb3 {[%clk 0:00:10.4]} 80... Kd8 {[%clk 0:00:05.8]} 81.
Qb8+ {[%clk 0:00:10.3]} 81... Ke7 {[%clk 0:00:05]} 82. Rb7+ {[%clk 0:00:10.9]}
82... Bd7 {[%clk 0:00:05.2]} 83. Rxd7+ {[%clk 0:00:11.5]} 83... Kxd7 {[%clk
0:00:06.1]} 84. Qb7+ {[%clk 0:00:12.2]} 84... Kd8 {[%clk 0:00:06.6]} 85. Qxg7
{[%clk 0:00:13.1]} 85... R4a3 {[%clk 0:00:07.3]} 86. Qxf6+ {[%clk 0:00:13.3]}
86... Kc8 {[%clk 0:00:07.8]} 87. Qe6+ {[%clk 0:00:13.6]} 87... Kb7 {[%clk
0:00:07.9]} 88. Rb1+ {[%clk 0:00:12.8]} 88... Ka6 {[%clk 0:00:08.1]} 89. Qxd6+
{[%clk 0:00:13.1]} 89... Ka5 {[%clk 0:00:08.3]} 90. Qxc5+ {[%clk 0:00:13.4]}
90... Ka4 {[%clk 0:00:09.2]} 91. Qb5# {[%clk 0:00:13.7]} 1-0